[Event "Netanya Open 2019"]
[Site "Netanya"]
[Date "2019.06.28"]
[Round "6.11"]
[White "Birnboim, Nathan"]
[Black "Kogan, Arthur"]
[Result "1-0"]
[ECO "E11"]
[WhiteElo "2379"]
[BlackElo "2535"]
[Annotator "ChessBase"]
[PlyCount "97"]
[EventDate "2019.06.23"]
[EventType "swiss"]
[EventCountry "ISR"]
[SourceTitle "playchess.com"]
[Source "ChessBase"]
[SourceQuality "1"]
[TimeControl "40/5400+30:1800+30"]

1. d4 {[%emt 0:00:00]} Nf6 {[%emt 0:00:00]} 2. c4 {[%emt 0:00:00]} e6 {[%emt 0:01:55]} 3. g3 {[%emt 0:00:00]} Bb4+ {[%emt 0:00:27]} 4. Bd2 {[%emt 0:00:02]} a5 {[%emt 0:00:12]} 5. Bg2 {[%emt 0:01:55]} d6 {[%emt 0:00:29]} 6. Nf3 {[%emt 0:00:25]} Nbd7 {[%emt 0:00:11]} 7. O-O {[%emt 0:01:17]} e5 {[%emt 0:00:20]} 8. Be3 {[%emt 0:10:03]} O-O {[%emt 0:03:51]} 9. Qc2 {[%emt 0:01:17]} exd4 {[%emt 0:05:18]} 10. Bxd4 {[%emt 0:00:20]} Re8 {[%emt 0:00:45]} 11. Nc3 {[%emt 0:02:01]} c6 {[%emt 0:02:48]} 12. Rad1 {[%emt 0:03:37]} Qe7 {[%emt 0:01:38]} 13. Nh4 {[%emt 0:09:11]} Nc5 {[%emt 0:11:06]} 14. Nf5 {[%emt 0:04:37]} Bxf5 {[%emt 0:00:41]} 15. Qxf5 {[%emt 0:00:08]} Nfd7 {[%emt 0:06:24]} 16. Qc2 {[%emt 0:06:13]} a4 {[%emt 0:03:00]} 17. b3 {[%emt 0:09:24]} a3 {[%emt 0:19:49]} 18. e3 {[%emt 0:04:53]} Ne6 {[%emt 0:04:49]} 19. Ne2 {[%emt 0:00:31]} Ne5 {[%emt 0:09:46]} 20. Ba1 {[%emt 0:01:53]} Ra5 {[%emt 0:05:30]} 21. Nd4 {[%emt 0:05:32]} Nxd4 {[%emt 0:06:17]} 22. Rxd4 {[%emt 0:00:59]} f6 {[%emt 0:02:07]} 23. Bc3 {[%emt 0:02:35]} Bxc3 {[%emt 0:00:39]} 24. Qxc3 {[%emt 0:00:05]} Raa8 {[%emt 0:00:38]} 25. Rfd1 {[%emt 0:00:17]} Nf7 {[%emt 0:00:37]} 26. b4 {[%emt 0:02:08]} Qe5 {[%emt 0:01:02]} 27. Qb3 {[%emt 0:02:15]} f5 {[%emt 0:01:55]} 28. Qd3 {[%emt 0:11:57]} Ra4 {[%emt 0:03:46]} 29. Rb1 {[%emt 0:00:51]} g6 {[%emt 0:00:27]} 30. Qb3 {[%emt 0:02:56]} Rea8 {[%emt 0:01:55]} 31. f4 {[%emt 0:01:54]} Qf6 {[%emt 0:02:44]} 32. Rd3 {[%emt 0:00:17]} Qe6 {[%emt 0:02:20]} 33. Rc3 {[%emt 0:05:54]} h5 {[%emt 0:01:02]} 34. b5 {[%emt 0:00:52]} Qe8 {[%emt 0:00:41]} 35. bxc6 {[%emt 0:01:57]} bxc6 {[%emt 0:00:03]} 36. Qb6 {[%emt 0:00:20]} R4a6 {[%emt 0:00:59]} 37. Qd4 {[%emt 0:00:20]} c5 {[%emt 0:01:46]} 38. Qf6 {[%emt 0:00:24]} d5 {[%emt 0:00:04]} 39. Rb6 {[%emt 0:00:27]} Rxb6 {[%emt 0:00:28]} 40. Qxb6 {[%emt 0:00:01]} d4 {[%emt 0:00:33]} 41. Qxg6+ {[%emt 0:36:14]} Kf8 {[%emt 0:30:16]} 42. Rb3 {[%emt 0:01:16]} dxe3 {[%emt 0:00:00]} 43. Kf1 {[%emt 0:00:00]} Rb8 {[%emt 0:00:00]} 44. Bc6 {[%emt 0:00:00]} e2+ {[%emt 0:02:03]} 45. Ke1 {[%emt 0:00:00]} Qd8 {[%emt 0:00:15]} 46. Bd5 {[%emt 0:00:00]} Nd6 {[%emt 0:00:13]} 47. Qg8+ {[%emt 0:00:00]} Ke7 {[%emt 0:00:05]} 48. Re3+ {[%emt 0:00:00]} Ne4 {[%emt 0:00:13]} 49. Qe6+ {[%emt 0:00:00]} 1-0

[Event "Netanya Open 2019"]
[Site "Netanya"]
[Date "2019.06.28"]
[Round "6.12"]
[White "Sivan, Yaacov"]
[Black "Baron, Tal"]
[Result "0-1"]
[ECO "B07"]
[WhiteElo "2320"]
[BlackElo "2524"]
[Annotator "ChessBase"]
[PlyCount "88"]
[EventDate "2019.06.23"]
[EventType "swiss"]
[EventCountry "ISR"]
[SourceTitle "playchess.com"]
[Source "ChessBase"]
[SourceQuality "1"]
[TimeControl "40/5400+30:1800+30"]

1. e4 {[%emt 0:00:00]} d6 {[%emt 0:01:25]} 2. d4 {[%emt 0:00:18]} Nf6 {[%emt 0:00:04]} 3. Nc3 {[%emt 0:00:14]} g6 {[%emt 0:00:06]} 4. Bg5 {[%emt 0:01:16]} Bg7 {[%emt 0:00:05]} 5. f3 {[%emt 0:01:10]} c6 {[%emt 0:00:08]} 6. Qd2 {[%emt 0:01:12]} b5 {[%emt 0:00:09]} 7. O-O-O {[%emt 0:10:26]} Qa5 {[%emt 0:01:39]} 8. Kb1 {[%emt 0:03:30]} Nbd7 {[%emt 0:00:55]} 9. Nce2 {[%emt 0:05:04]} Qxd2 {[%emt 0:02:46]} 10. Bxd2 {[%emt 0:04:36]} Bb7 {[%emt 0:03:57]} 11. Nc1 {[%emt 0:02:25]} O-O-O {[%emt 0:05:50]} 12. Nb3 {[%emt 0:02:59]} e5 {[%emt 0:01:59]} 13. Ba5 {[%emt 0:05:27]} Nb6 {[%emt 0:20:45]} 14. dxe5 {[%emt 0:00:37]} dxe5 {[%emt 0:05:56]} 15. Bd3 {[%emt 0:02:31]} Ne8 {[%emt 0:05:14]} 16. Ne2 {[%emt 0:02:10]} Bf8 {[%emt 0:03:58]} 17. Nec1 {[%emt 0:03:58]} Nc7 {[%emt 0:01:56]} 18. Be2 {[%emt 0:13:26]} Bd6 {[%emt 0:02:04]} 19. Nd3 {[%emt 0:15:00]} Nc4 {[%emt 0:00:47]} 20. Bb4 {[%emt 0:06:29]} Ne3 {[%emt 0:01:31]} 21. Bxd6 {[%emt 0:02:23]} Rxd6 {[%emt 0:00:01]} 22. Rdg1 {[%emt 0:03:38]} Re8 {[%emt 0:01:07]} 23. Ndc5 {[%emt 0:00:50]} Kb8 {[%emt 0:01:33]} 24. Bd3 {[%emt 0:00:50]} Bc8 {[%emt 0:04:50]} 25. g4 {[%emt 0:01:07]} Ne6 {[%emt 0:01:21]} 26. Nxe6 {[%emt 0:00:41]} Bxe6 {[%emt 0:00:02]} 27. Nc5 {[%emt 0:00:17]} Kc7 {[%emt 0:00:31]} 28. b3 {[%emt 0:02:37]} Bc8 {[%emt 0:00:26]} 29. Rg3 {[%emt 0:02:16]} a5 {[%emt 0:01:43]} 30. a3 {[%emt 0:07:33]} Kb6 {[%emt 0:00:17]} 31. b4 {[%emt 0:00:00]} Red8 {[%emt 0:03:57]} 32. Kb2 {[%emt 0:00:00]} Rd4 {[%emt 0:02:56]} 33. Nb3 {[%emt 0:00:00]} axb4 {[%emt 0:00:12]} 34. Nxd4 {[%emt 0:00:00]} bxa3+ {[%emt 0:00:01]} 35. Kxa3 {[%emt 0:00:00]} exd4 {[%emt 0:00:03]} 36. g5 {[%emt 0:00:01]} c5 {[%emt 0:00:45]} 37. Kb2 {[%emt 0:00:32]} c4 {[%emt 0:00:05]} 38. Be2 {[%emt 0:00:24]} c3+ {[%emt 0:02:28]} 39. Kb1 {[%emt 0:00:53]} Be6 {[%emt 0:00:02]} 40. f4 {[%emt 0:01:00]} Ra8 {[%emt 0:00:39]} 41. Rxe3 {[%emt 0:15:40]} dxe3 {[%emt 0:01:28]} 42. Re1 {[%emt 0:00:10]} Ba2+ {[%emt 0:02:04]} 43. Kc1 {[%emt 0:02:46]} Ra4 {[%emt 0:01:14]} 44. Bd3 {[%emt 0:04:13]} e2 {[%emt 0:00:14]} 0-1

[Event "Netanya Open 2019"]
[Site "Netanya"]
[Date "2019.06.28"]
[Round "6.13"]
[White "Dvoirys, Semen I."]
[Black "Globus, Or"]
[Result "1-0"]
[ECO "B19"]
[WhiteElo "2502"]
[BlackElo "2352"]
[Annotator "ChessBase"]
[PlyCount "51"]
[EventDate "2019.06.23"]
[EventType "swiss"]
[EventCountry "ISR"]
[SourceTitle "playchess.com"]
[Source "ChessBase"]
[SourceQuality "1"]
[TimeControl "40/5400+30:1800+30"]

1. e4 {[%emt 0:00:00]} c6 {[%emt 0:00:00]} 2. d4 {[%emt 0:00:00]} d5 {[%emt 0:00:00]} 3. Nd2 {[%emt 0:00:02]} dxe4 {[%emt 0:00:00]} 4. Nxe4 {[%emt 0:00:16]} Bf5 {[%emt 0:00:00]} 5. Ng3 {[%emt 0:00:04]} Bg6 {[%emt 0:00:00]} 6. h4 {[%emt 0:00:06]} h6 {[%emt 0:00:00]} 7. Nf3 {[%emt 0:00:07]} Nd7 {[%emt 0:00:03]} 8. h5 {[%emt 0:00:08]} Bh7 {[%emt 0:00:03]} 9. Bd3 {[%emt 0:00:06]} Bxd3 {[%emt 0:00:04]} 10. Qxd3 {[%emt 0:00:05]} e6 {[%emt 0:00:02]} 11. Bd2 {[%emt 0:00:44]} Ngf6 {[%emt 0:00:05]} 12. O-O-O {[%emt 0:00:09]} Be7 {[%emt 0:00:03]} 13. Qe2 {[%emt 0:00:37]} Qb6 {[%emt 0:06:22]} 14. Ne5 {[%emt 0:01:53]} Rd8 {[%emt 0:12:45]} 15. Rhe1 {[%emt 0:26:45]} c5 {[%emt 0:11:40]} 16. Nf5 {[%emt 0:07:13]} cxd4 {[%emt 0:11:33]} 17. Ng6 {[%emt 0:00:17]} fxg6 {[%emt 0:19:42]} 18. Nxg7+ {[%emt 0:00:10]} Kf7 {[%emt 0:00:36]} 19. Nxe6 {[%emt 0:00:10]} gxh5 {[%emt 0:02:21]} 20. Qc4 {[%emt 0:05:02]} Rdg8 {[%emt 0:09:49]} 21. Nxd4+ {[%emt 0:05:42]} Kf8 {[%emt 0:02:15]} 22. Rxe7 {[%emt 0:01:00]} Kxe7 {[%emt 0:03:42]} 23. Re1+ {[%emt 0:06:47]} Kd8 {[%emt 0:00:51]} 24. Ne6+ {[%emt 0:00:11]} Ke8 {[%emt 0:00:43]} 25. Nc5+ {[%emt 0:03:56]} Kd8 {[%emt 0:02:00]} 26. Ba5 {[%emt 0:00:14]} 1-0

[Event "Netanya Open 2019"]
[Site "Netanya"]
[Date "2019.06.28"]
[Round "6.14"]
[White "Poleg, Dan"]
[Black "Zoler, Dan"]
[Result "0-1"]
[ECO "E12"]
[WhiteElo "2271"]
[BlackElo "2499"]
[Annotator "ChessBase"]
[PlyCount "58"]
[EventDate "2019.06.23"]
[EventType "swiss"]
[EventCountry "ISR"]
[SourceTitle "playchess.com"]
[Source "ChessBase"]
[SourceQuality "1"]
[TimeControl "40/5400+30:1800+30"]

1. d4 {[%emt 0:00:00]} Nf6 {[%emt 0:00:00]} 2. c4 {[%emt 0:00:00]} e6 {[%emt 0:00:00]} 3. Nf3 {[%emt 0:00:00]} b6 {[%emt 0:00:00]} 4. a3 {[%emt 0:00:13]} Bb7 {[%emt 0:00:00]} 5. Nc3 {[%emt 0:00:17]} g6 {[%emt 0:00:00]} 6. Bg5 {[%emt 0:00:22]} Bg7 {[%emt 0:00:04]} 7. e3 {[%emt 0:00:21]} h6 {[%emt 0:00:56]} 8. Bh4 {[%emt 0:00:43]} d6 {[%emt 0:01:41]} 9. Be2 {[%emt 0:00:33]} Nbd7 {[%emt 0:01:02]} 10. d5 {[%emt 0:03:26]} exd5 {[%emt 0:20:11]} 11. cxd5 {[%emt 0:02:46]} O-O {[%emt 0:00:13]} 12. O-O {[%emt 0:09:27]} Re8 {[%emt 0:02:07]} 13. Rc1 {[%emt 0:01:25]} a6 {[%emt 0:00:35]} 14. b4 {[%emt 0:00:49]} b5 {[%emt 0:07:21]} 15. Nd4 {[%emt 0:12:17]} Nb6 {[%emt 0:18:05]} 16. Bf3 {[%emt 0:02:08]} Qd7 {[%emt 0:11:05]} 17. e4 {[%emt 0:05:57]} Nc4 {[%emt 0:04:36]} 18. a4 {[%emt 0:14:10]} Nb2 {[%emt 0:00:39]} 19. Qc2 {[%emt 0:00:19]} Nxa4 {[%emt 0:00:13]} 20. Nxa4 {[%emt 0:00:22]} bxa4 {[%emt 0:00:02]} 21. Rfd1 {[%emt 0:08:18]} g5 {[%emt 0:01:32]} 22. Bg3 {[%emt 0:00:55]} g4 {[%emt 0:00:22]} 23. Be2 {[%emt 0:00:23]} Nxe4 {[%emt 0:05:36]} 24. Qxc7 {[%emt 0:13:03]} Qxc7 {[%emt 0:00:45]} 25. Rxc7 {[%emt 0:00:05]} Nxg3 {[%emt 0:00:14]} 26. hxg3 {[%emt 0:00:19]} Bxd4 {[%emt 0:02:14]} 27. Rxd4 {[%emt 0:00:06]} Rxe2 {[%emt 0:00:03]} 28. Rxg4+ {[%emt 0:00:24]} Kh8 {[%emt 0:00:48]} 29. Rxb7 {[%emt 0:01:35]} a3 {[%emt 0:01:40]} 0-1

[Event "Netanya Open 2019"]
[Site "Netanya"]
[Date "2019.06.28"]
[Round "6.15"]
[White "Bar, Roman"]
[Black "Friedland, Moshe"]
[Result "1-0"]
[ECO "B23"]
[WhiteElo "2497"]
[BlackElo "2298"]
[Annotator "ChessBase"]
[PlyCount "153"]
[EventDate "2019.06.23"]
[EventType "swiss"]
[EventCountry "ISR"]
[SourceTitle "playchess.com"]
[Source "ChessBase"]
[SourceQuality "1"]
[TimeControl "40/5400+30:1800+30"]

1. e4 {[%emt 0:00:00]} c5 {[%emt 0:00:00]} 2. Nc3 {[%emt 0:00:17]} a6 {[%emt 0:00:00]} 3. Nge2 {[%emt 0:01:39]} d6 {[%emt 0:00:36]} 4. g3 {[%emt 0:00:20]} Nf6 {[%emt 0:00:06]} 5. Bg2 {[%emt 0:00:09]} e5 {[%emt 0:00:37]} 6. O-O {[%emt 0:00:14]} Be7 {[%emt 0:00:05]} 7. d3 {[%emt 0:02:42]} O-O {[%emt 0:01:13]} 8. h3 {[%emt 0:01:13]} Nc6 {[%emt 0:02:14]} 9. a4 {[%emt 0:04:10]} Bd7 {[%emt 0:06:02]} 10. g4 {[%emt 0:07:21]} Nd4 {[%emt 0:08:47]} 11. Ng3 {[%emt 0:02:09]} Ne8 {[%emt 0:05:47]} 12. f4 {[%emt 0:14:32]} exf4 {[%emt 0:07:03]} 13. Bxf4 {[%emt 0:00:47]} Nc7 {[%emt 0:02:20]} 14. Nd5 {[%emt 0:08:00]} Nxd5 {[%emt 0:14:32]} 15. exd5 {[%emt 0:00:41]} Qb6 {[%emt 0:00:44]} 16. c3 {[%emt 0:31:52]} Nb3 {[%emt 0:00:17]} 17. Ra3 {[%emt 0:00:09]} c4+ {[%emt 0:02:08]} 18. d4 {[%emt 0:00:07]} Qd8 {[%emt 0:02:28]} 19. Qe2 {[%emt 0:03:24]} Rc8 {[%emt 0:04:38]} 20. Be4 {[%emt 0:01:14]} Re8 {[%emt 0:10:00]} 21. Qf3 {[%emt 0:01:35]} Kh8 {[%emt 0:01:20]} 22. Bc2 {[%emt 0:05:15]} b6 {[%emt 0:04:17]} 23. Qe4 {[%emt 0:05:09]} g6 {[%emt 0:01:19]} 24. Qf3 {[%emt 0:00:02]} Ra8 {[%emt 0:06:40]} 25. Ne4 {[%emt 0:00:56]} f5 {[%emt 0:01:01]} 26. Nxd6 {[%emt 0:05:42]} Bxd6 {[%emt 0:00:43]} 27. Bxd6 {[%emt 0:00:02]} Nd2 {[%emt 0:02:30]} 28. Qf4 {[%emt 0:00:05]} Nxf1 {[%emt 0:00:43]} 29. Be5+ {[%emt 0:00:06]} Kg8 {[%emt 0:00:15]} 30. gxf5 {[%emt 0:00:48]} Bxf5 {[%emt 0:04:35]} 31. Bxf5 {[%emt 0:00:21]} Rxe5 {[%emt 0:00:45]} 32. Qxe5 {[%emt 0:03:03]} gxf5 {[%emt 0:02:09]} 33. Kxf1 {[%emt 0:00:19]} Qh4 {[%emt 0:00:50]} 34. Kg2 {[%emt 0:01:29]} f4 {[%emt 0:03:20]} 35. Qe6+ {[%emt 0:00:05]} Kg7 {[%emt 0:00:15]} 36. Qg4+ {[%emt 0:00:25]} Qxg4+ {[%emt 0:00:15]} 37. hxg4 {[%emt 0:00:04]} Kf6 {[%emt 0:01:01]} 38. Kf3 {[%emt 0:01:07]} Kg5 {[%emt 0:00:14]} 39. Ra1 {[%emt 0:00:13]} Re8 {[%emt 0:00:58]} 40. Rh1 {[%emt 0:01:34]} Re3+ {[%emt 0:00:29]} 41. Kf2 {[%emt 0:30:24]} Kxg4 {[%emt 0:30:06]} 42. Rxh7 {[%emt 0:00:00]} Rf3+ {[%emt 0:00:00]} 43. Kg2 {[%emt 0:00:00]} Rg3+ {[%emt 0:00:00]} 44. Kf2 {[%emt 0:00:00]} Rf3+ {[%emt 0:00:00]} 45. Ke2 {[%emt 0:00:00]} Re3+ {[%emt 0:00:00]} 46. Kd2 {[%emt 0:00:00]} Rd3+ {[%emt 0:00:00]} 47. Kc2 {[%emt 0:00:00]} Re3 {[%emt 0:00:00]} 48. d6 {[%emt 0:00:00]} Re6 {[%emt 0:00:00]} 49. d7 {[%emt 0:00:00]} Rd6 {[%emt 0:00:00]} 50. Kd2 {[%emt 0:00:00]} Kf3 {[%emt 0:00:00]} 51. Rf7 {[%emt 0:00:00]} b5 {[%emt 0:00:00]} 52. a5 {[%emt 0:00:00]} Kg3 {[%emt 0:00:00]} 53. Ke2 {[%emt 0:00:00]} Re6+ {[%emt 0:00:00]} 54. Kf1 {[%emt 0:00:00]} Rd6 {[%emt 0:00:00]} 55. Rg7+ {[%emt 0:00:00]} Kf3 {[%emt 0:00:00]} 56. Re7 {[%emt 0:00:00]} Rd5 {[%emt 0:00:00]} 57. Ke1 {[%emt 0:00:00]} Rd6 {[%emt 0:00:00]} 58. Rf7 {[%emt 0:00:17]} Re6+ {[%emt 0:03:02]} 59. Kd2 {[%emt 0:00:17]} Rd6 {[%emt 0:00:07]} 60. Rf6 {[%emt 0:00:42]} Rxd7 {[%emt 0:00:07]} 61. Rxa6 {[%emt 0:00:05]} Rh7 {[%emt 0:01:44]} 62. Rb6 {[%emt 0:03:43]} Rh2+ {[%emt 0:00:08]} 63. Kc1 {[%emt 0:00:04]} Rh1+ {[%emt 0:05:04]} 64. Kc2 {[%emt 0:00:04]} Rh2+ {[%emt 0:00:05]} 65. Kb1 {[%emt 0:00:49]} Rh1+ {[%emt 0:01:16]} 66. Ka2 {[%emt 0:00:28]} Ke2 {[%emt 0:00:11]} 67. a6 {[%emt 0:00:36]} Rh7 {[%emt 0:00:09]} 68. Re6+ {[%emt 0:00:54]} Kd2 {[%emt 0:00:40]} 69. Rf6 {[%emt 0:00:11]} Ke3 {[%emt 0:00:05]} 70. Ka3 {[%emt 0:00:32]} f3 {[%emt 0:01:20]} 71. Kb4 {[%emt 0:02:34]} Rh2 {[%emt 0:00:34]} 72. a7 {[%emt 0:01:19]} Rxb2+ {[%emt 0:01:03]} 73. Ka3 {[%emt 0:01:02]} Rb3+ {[%emt 0:00:04]} 74. Ka2 {[%emt 0:00:03]} Kd2 {[%emt 0:00:34]} 75. a8=Q {[%emt 0:02:11]} Kc1 {[%emt 0:00:06]} 76. Qa3+ {[%emt 0:00:18]} Kc2 {[%emt 0:00:11]} 77. Rxf3 {[%emt 0:00:24]} 1-0

[Event "Netanya Open 2019"]
[Site "Netanya"]
[Date "2019.06.28"]
[Round "6.16"]
[White "Cohen Revivo, Shoham"]
[Black "Flom, Gabriel"]
[Result "0-1"]
[ECO "B84"]
[WhiteElo "2240"]
[BlackElo "2480"]
[Annotator "ChessBase"]
[PlyCount "104"]
[EventDate "2019.06.23"]
[EventType "swiss"]
[EventCountry "ISR"]
[SourceTitle "playchess.com"]
[Source "ChessBase"]
[SourceQuality "1"]
[TimeControl "40/5400+30:1800+30"]

1. e4 {[%emt 0:00:00]} c5 {[%emt 0:00:00]} 2. Nf3 {[%emt 0:00:00]} b6 {[%emt 0:00:00]} 3. d4 {[%emt 0:01:10]} cxd4 {[%emt 0:00:27]} 4. Nxd4 {[%emt 0:00:06]} Bb7 {[%emt 0:00:03]} 5. Nc3 {[%emt 0:00:11]} e6 {[%emt 0:03:55]} 6. Be3 {[%emt 0:00:18]} a6 {[%emt 0:01:23]} 7. Be2 {[%emt 0:00:26]} Qc7 {[%emt 0:01:25]} 8. O-O {[%emt 0:00:44]} Nf6 {[%emt 0:00:02]} 9. f3 {[%emt 0:00:34]} Be7 {[%emt 0:06:21]} 10. Qd2 {[%emt 0:02:39]} d6 {[%emt 0:01:15]} 11. a4 {[%emt 0:02:00]} O-O {[%emt 0:00:50]} 12. Rad1 {[%emt 0:05:29]} Nbd7 {[%emt 0:01:05]} 13. g4 {[%emt 0:01:58]} h6 {[%emt 0:05:48]} 14. Bf2 {[%emt 0:04:02]} d5 {[%emt 0:03:48]} 15. exd5 {[%emt 0:04:23]} Nxd5 {[%emt 0:00:07]} 16. Nxd5 {[%emt 0:00:23]} Bxd5 {[%emt 0:01:09]} 17. c4 {[%emt 0:00:43]} Bg5 {[%emt 0:00:03]} 18. Be3 {[%emt 0:08:28]} Bxe3+ {[%emt 0:00:45]} 19. Qxe3 {[%emt 0:00:08]} Bb7 {[%emt 0:00:22]} 20. b3 {[%emt 0:05:01]} Rad8 {[%emt 0:02:21]} 21. Rd2 {[%emt 0:00:19]} Ne5 {[%emt 0:06:46]} 22. Rfd1 {[%emt 0:05:03]} Ng6 {[%emt 0:00:49]} 23. Bd3 {[%emt 0:18:00]} Nh4 {[%emt 0:12:53]} 24. Be4 {[%emt 0:00:34]} Bxe4 {[%emt 0:00:12]} 25. Qxe4 {[%emt 0:00:07]} Qc5 {[%emt 0:00:24]} 26. Kf1 {[%emt 0:01:28]} Rd6 {[%emt 0:03:45]} 27. Nc2 {[%emt 0:09:54]} f5 {[%emt 0:17:41]} 28. gxf5 {[%emt 0:02:40]} Rxd2 {[%emt 0:00:04]} 29. Rxd2 {[%emt 0:00:12]} Nxf3 {[%emt 0:00:11]} 30. Qxe6+ {[%emt 0:04:42]} Kh8 {[%emt 0:00:04]} 31. Rf2 {[%emt 0:00:05]} Nxh2+ {[%emt 0:00:41]} 32. Kg2 {[%emt 0:01:39]} Ng4 {[%emt 0:00:40]} 33. Rf4 {[%emt 0:00:04]} Nf6 {[%emt 0:01:50]} 34. Rh4 {[%emt 0:01:38]} Kh7 {[%emt 0:03:29]} 35. Nd4 {[%emt 0:01:37]} Qa3 {[%emt 0:06:46]} 36. Nf3 {[%emt 0:08:45]} Qxb3 {[%emt 0:15:08]} 37. Qe7 {[%emt 0:02:48]} Qc2+ {[%emt 0:00:36]} 38. Kg1 {[%emt 0:04:00]} Qxf5 {[%emt 0:01:05]} 39. Qxf8 {[%emt 0:00:37]} Qxf3 {[%emt 0:00:04]} 40. Rh2 {[%emt 0:01:26]} Qd1+ {[%emt 0:00:24]} 41. Kg2 {[%emt 0:30:09]} Qc2+ {[%emt 0:32:41]} 42. Kg1 {[%emt 0:00:01]} Qb1+ {[%emt 0:00:00]} 43. Kg2 {[%emt 0:00:00]} Ng4 {[%emt 0:00:00]} 44. Rh3 {[%emt 0:00:00]} Qc2+ {[%emt 0:00:00]} 45. Kg3 {[%emt 0:00:00]} Nf6 {[%emt 0:00:00]} 46. Rh4 {[%emt 0:00:00]} Qxa4 {[%emt 0:00:00]} 47. Rd4 {[%emt 0:00:00]} Qb3+ {[%emt 0:00:00]} 48. Kf4 {[%emt 0:00:00]} a5 {[%emt 0:00:00]} 49. Qc8 {[%emt 0:00:00]} g5+ {[%emt 0:00:00]} 50. Ke5 {[%emt 0:00:00]} Qe3+ {[%emt 0:00:00]} 51. Kxf6 {[%emt 0:00:00]} Qxd4+ {[%emt 0:00:00]} 52. Kf7 {[%emt 0:00:00]} Qg7+ {[%emt 0:08:38]} 0-1

[Event "Netanya Open 2019"]
[Site "Netanya"]
[Date "2019.06.28"]
[Round "6.17"]
[White "Erenberg, Ariel"]
[Black "Alexikov, Alexander"]
[Result "1-0"]
[ECO "E60"]
[WhiteElo "2434"]
[BlackElo "2234"]
[Annotator "NA"]
[PlyCount "125"]
[EventDate "2019.06.23"]
[EventType "swiss"]
[EventCountry "ISR"]
[SourceTitle "playchess.com"]
[Source "ChessBase"]
[SourceQuality "1"]
[TimeControl "40/5400+30:1800+30"]

1. d4 {[%emt 0:00:00]} g6 {[%emt 0:00:02]} 2. c4 {[%emt 0:00:23]} Nf6 {[%emt 0:00:47]} 3. g3 {[%emt 0:01:21]} c5 {[%emt 0:04:31]} 4. dxc5 {[%emt 0:04:32]} Na6 {[%emt 0:07:01]} 5. a3 {[%emt 0:11:27]} Nxc5 {[%emt 0:03:10]} 6. b4 {[%emt 0:00:33]} Ne6 {[%emt 0:00:17]} 7. Bb2 {[%emt 0:00:10]} Bg7 {[%emt 0:00:09]} 8. Bg2 {[%emt 0:00:09]} d6 {[%emt 0:00:52]} 9. Nc3 {[%emt 0:17:01]} O-O {[%emt 0:01:40]} 10. Qd2 {[%emt 0:06:28]} Re8 {[%emt 0:04:47]} 11. Nf3 {[%emt 0:08:26]} Bd7 {[%emt 0:15:57]} 12. O-O {[%emt 0:03:06]} Rc8 {[%emt 0:05:23]} 13. Qd3 {[%emt 0:02:20]} Qc7 {[%emt 0:02:26]} 14. Nd2 {[%emt 0:01:07]} Bc6 {[%emt 0:02:40]} 15. e4 {[%emt 0:40:27]} Qb8 {[%emt 0:01:27]} 16. Nb3 {[%emt 0:00:00]} b6 {[%emt 0:07:45]} 17. Rfb1 {[%emt 0:00:00]} Nf8 {[%emt 0:06:45]} 18. Nd5 {[%emt 0:00:00]} N8d7 {[%emt 0:00:20]} 19. Nd4 {[%emt 0:00:00]} Bb7 {[%emt 0:14:52]} 20. f4 {[%emt 0:00:00]} a6 {[%emt 0:03:22]} 21. Re1 {[%emt 0:00:00]} e5 {[%emt 0:01:11]} 22. Nb3 exf4 {[%emt 0:07:01]} 23. Nxf6+ {[%emt 0:00:00]} Nxf6 {[%emt 0:03:31]} 24. gxf4 {[%emt 0:00:00]} Qa8 {[%emt 0:04:10]} 25. Nd2 {[%emt 0:00:00]} Re7 {[%emt 0:00:47]} 26. Re3 {[%emt 0:00:00]} Rce8 {[%emt 0:00:20]} 27. Bxf6 {[%emt 0:00:06]} Bxf6 {[%emt 0:00:30]} 28. Rae1 {[%emt 0:00:30]} Kg7 {[%emt 0:00:30]} 29. Kh1 {[%emt 0:00:30]} Bh4 {[%emt 0:00:30]} 30. R1e2 {[%emt 0:00:30]} Re6 {[%emt 0:00:30]} 31. Rh3 {[%emt 0:00:30]} Bf6 {[%emt 0:00:30]} 32. Qe3 {[%emt 0:00:30]} Kg8 {[%emt 0:00:30]} 33. f5 {[%emt 0:00:30]} Re5 {[%emt 0:00:30]} 34. Qh6 {[%emt 0:00:30]} Rxf5 {[%emt 0:00:30]} 35. Qxh7+ {[%emt 0:00:30]} Kf8 {[%emt 0:00:45]} 36. Qh6+ {[%emt 0:04:14]} Bg7 {[%emt 0:00:30]} 37. Qe3 {[%emt 0:00:30]} Rf6 {[%emt 0:00:30]} 38. Qxb6 {[%emt 0:00:30]} Kg8 {[%emt 0:00:30]} 39. Qe3 {[%emt 0:00:30]} Rfe6 {[%emt 0:00:30]} 40. a4 {[%emt 0:00:30]} d5 {[%emt 0:00:30]} 41. c5 dxe4 {[%emt 0:00:51]} 42. Nc4 {[%emt 0:05:00]} Qb8 {[%emt 0:14:25]} 43. b5 {[%emt 0:05:22]} axb5 {[%emt 0:02:48]} 44. axb5 {[%emt 0:00:02]} Bd5 {[%emt 0:05:41]} 45. Nb6 {[%emt 0:04:49]} Rxb6 {[%emt 0:01:36]} 46. cxb6 {[%emt 0:00:06]} Qe5 {[%emt 0:00:50]} 47. Re1 {[%emt 0:02:11]} f5 {[%emt 0:01:35]} 48. Qg3 {[%emt 0:01:49]} Qe6 {[%emt 0:03:47]} 49. Rd1 {[%emt 0:02:41]} Re7 {[%emt 0:02:44]} 50. Qb8+ {[%emt 0:01:49]} Kf7 {[%emt 0:00:15]} 51. Ra3 {[%emt 0:00:45]} Be5 {[%emt 0:01:06]} 52. Qd8 {[%emt 0:00:27]} Bb7 {[%emt 0:00:14]} 53. Ra7 {[%emt 0:01:25]} Kg7 {[%emt 0:00:39]} 54. Rc1 {[%emt 0:02:38]} Rd7 {[%emt 0:00:44]} 55. Rxb7 {[%emt 0:00:24]} Rxb7 {[%emt 0:00:15]} 56. Rc8 {[%emt 0:00:05]} Qd7 {[%emt 0:02:02]} 57. Qh8+ {[%emt 0:01:01]} Kf7 {[%emt 0:00:00]} 58. Qf8+ {[%emt 0:01:20]} Ke6 {[%emt 0:00:00]} 59. Re8+ {[%emt 0:00:47]} Kd5 {[%emt 0:00:53]} 60. Rd8 {[%emt 0:00:02]} Qxd8 {[%emt 0:00:31]} 61. Qxd8+ {[%emt 0:00:05]} Kc5 {[%emt 0:00:07]} 62. Qc8+ {[%emt 0:00:25]} Kxb6 {[%emt 0:00:01]} 63. Qc6+ {[%emt 0:10:27]} 1-0